bitfinex-derivatives/quotes_SOLF0:USTF0_20250907
["timestamp","ask_amount","ask_price","bid_price","bid_amount"]
[1757246309198,13.13618662,203.89,203.88,4.45059142]
[1757246320804,5.51618662,203.89,203.81,43.4951]
[1757246321008,13.13618662,203.89,203.83,1.32]
[1757246321205,7.62,203.88,203.85,1.32]
[1757246321509,7.62,203.88,203.86,4.45624361]
[1757246321809,7.62,203.88,203.87,4.45624361]
[1757246322410,5.51618662,203.89,203.88,1.32]
[1757246322608,7.62,203.9,203.88,5.77624361]
[1757246322809,7.62,203.9,203.89,4.45624361]
[1757246323506,7.62,203.95,203.89,5.77624361]
[1757246323710,7.62,203.96,203.9,4.45624361]
[1757246323907,7.62,203.96,203.91,4.45624361]
[1757246324116,7.62,203.96,203.92,4.45624361]
[1757246324305,7.62,203.96,203.93,4.45624361]
[1757246324505,7.62,203.96,203.94,4.45624361]
[1757246324705,7.62,203.96,203.95,4.45624361]
[1757246330916,20.24618662,204.03,203.95,4.45624361]
[1757246331216,22.67,204.03,203.96,4.45624361]
[1757246331418,22.67,204.03,203.97,4.45624361]
[1757246331618,22.67,204.03,203.98,4.45624361]
[1757246331814,22.67,204.03,203.91,1.29]
[1757246332019,22.67,204.03,203.92,4.37239796]
[1757246332219,22.67,204.03,203.93,4.37239796]
[1757246332518,7.94,204.03,203.95,1.29]
[1757246332718,7.94,204.03,203.96,4.37239796]
[1757246332916,7.94,204.03,203.97,4.37239796]
[1757246333116,7.94,204.03,203.95,1.29]
[1757246333117,7.94,204.03,203.98,4.37239796]
[1757246333316,7.94,204.03,203.99,4.37239796]
[1757246333513,7.94,204.06,204.0,4.37239796]
[1757246333716,7.94,204.09,204.01,4.37239796]
[1757246333916,7.94,204.09,204.02,4.37239796]
[1757246334117,111.87001233,204.09,204.03,4.37239796]
[1757246334318,111.87001233,204.09,204.04,4.37239796]
[1757246334518,111.87001233,204.09,204.0,1.29]
[1757246334714,111.87001233,204.09,204.01,4.65937243]
[1757246334921,111.87001233,204.09,204.02,4.65937243]
[1757246335122,111.87001233,204.09,204.03,4.65937243]
[1757246335322,111.87001233,204.09,204.0,1.29]
[1757246335522,111.87001233,204.09,204.01,4.65646138]
[1757246335820,111.87001233,204.09,204.0,1.29]
[1757246335821,117.38619895,204.09,204.02,4.65646138]
[1757246336021,117.38619895,204.09,204.0,1.29]
[1757246336222,117.38619895,204.09,204.01,4.6564612]
[1757246336422,5.51618662,204.07,204.0,1.29]
[1757246336622,7.94,204.06,204.0,1.29]
[1757246342521,7.94,204.06,203.89,1.29]
[1757246342728,7.94,204.06,203.91,1.29]
[1757246342729,13.45618662,204.06,203.91,1.29]
[1757246342928,13.45618662,204.06,203.93,1.29]
[1757246343131,13.45618662,204.06,203.94,4.64696996]
[1757246343330,118.66001233,204.09,203.95,4.64696996]
[1757246343331,7.94,204.04,203.95,4.64696996]
[1757246343629,7.94,204.04,203.93,1.29]
[1757246343829,7.94,204.04,203.94,4.64808414]
[1757246344031,7.94,204.04,203.95,4.64808414]
[1757246344230,7.94,204.04,203.93,1.29]
[1757246344429,7.94,204.04,203.94,4.64780788]
[1757246344624,7.94,204.04,203.95,4.64780788]
[1757246344819,7.94,204.04,203.93,1.29]
[1757246345028,7.94,204.04,203.94,4.64787744]
[1757246345229,7.94,204.04,203.95,4.64787744]
[1757246345431,7.94,204.04,203.93,1.29]
[1757246345632,7.94,204.04,203.94,4.64768871]
[1757246345832,7.94,204.04,203.95,4.64768871]
[1757246346130,7.94,204.04,203.93,1.29]
[1757246346330,7.94,204.04,203.94,4.64742241]
[1757246346633,7.94,204.04,203.95,5.93742241]
[1757246346824,7.94,204.04,203.96,4.64680067]
[1757246347028,7.94,204.04,203.95,1.29]
[1757246347229,7.94,204.04,203.97,1.29]
[1757246350634,7.94,204.04,203.98,4.65001481]
[1757246350934,7.94,204.04,203.97,1.29]
[1757246351134,7.94,204.04,203.98,4.65001481]
[1757246351333,7.94,204.04,203.97,1.29]
[1757246351536,7.94,204.04,203.98,4.65006748]
[1757246351734,7.94,204.04,203.97,1.29]
[1757246351934,7.94,204.04,203.98,4.65006748]
[1757246352134,7.94,204.04,203.97,1.29]
[1757246352434,7.94,204.04,203.98,4.6504403]
[1757246352733,7.94,204.04,203.97,1.29]
[1757246352933,7.94,204.04,203.98,4.65037448]
[1757246353134,7.94,204.04,203.97,1.29]
[1757246353335,7.94,204.04,203.98,4.65062171]
[1757246353532,7.94,204.04,203.97,1.29]
[1757246353732,7.94,204.04,203.98,4.6505901]
[1757246353935,7.94,204.04,203.97,1.29]
[1757246354234,7.94,204.04,203.98,4.6505901]
[1757246354435,7.94,204.04,203.97,1.29]
[1757246354637,7.94,204.04,203.98,4.65080012]
[1757246354835,7.94,204.04,203.97,1.29]
[1757246355036,7.94,204.04,203.98,4.65080012]
[1757246355335,7.94,204.04,203.97,1.29]
[1757246355536,7.94,204.04,203.98,4.64994319]
[1757246355736,7.94,204.04,203.97,1.29]
[1757246355937,7.94,204.04,203.98,4.64976774]
[1757246356136,7.94,204.04,203.97,1.29]
[1757246356436,7.94,204.04,203.98,4.65009244]
[1757246356636,7.94,204.04,203.97,1.29]
[1757246356836,7.94,204.04,203.98,4.65016099]
[1757246357136,7.94,204.04,203.97,1.29]
[1757246357337,7.94,204.04,203.98,4.65055142]
[1757246357532,7.94,204.07,203.99,5.94055142]
[1757246357836,7.94,204.07,203.99,1.29]
[1757246359141,13.45618662,204.07,203.99,1.29]
[1757246359540,7.94,204.07,203.99,1.29]
[1757246360232,13.45618662,204.07,203.99,1.29]
[1757246363246,13.45618662,204.07,204.0,4.65414426]
[1757246363447,13.45618662,204.07,203.99,1.29]
[1757246363640,13.45618662,204.07,204.0,4.65427175]
[1757246363946,13.45618662,204.07,203.99,1.29]
[1757246364146,13.45618662,204.07,204.0,4.65427175]
[1757246364346,13.45618662,204.07,203.99,1.29]
[1757246364546,13.45618662,204.07,204.0,4.65561847]
[1757246364845,13.45618662,204.07,203.99,1.29]
[1757246365041,13.45618662,204.07,204.0,4.65561865]
[1757246365247,7.52,204.05,203.99,1.29]
[1757246365443,7.52,204.05,204.0,4.65717948]
[1757246365645,7.52,204.05,203.98,1.3]
[1757246365845,7.52,204.05,203.99,4.65717948]
[1757246366047,7.52,204.05,204.0,4.65717948]
[1757246366243,7.52,204.05,203.98,1.3]
[1757246366447,7.52,204.05,203.99,4.65899471]
[1757246366651,7.52,204.05,204.0,4.65899471]
[1757246366853,7.52,204.05,203.94,1.3]
[1757246367147,7.52,204.05,203.95,4.65899471]
[1757246367451,7.52,204.05,203.96,5.95899471]
[1757246367652,7.52,204.05,203.97,4.65899471]
[1757246367954,7.52,204.05,203.98,4.65899471]
[1757246368253,13.03618662,204.05,203.99,4.65899471]
[1757246368447,13.03618662,204.05,204.0,4.65899471]
[1757246368643,13.03618662,204.05,204.01,4.65899471]
[1757246368847,13.03618662,204.05,203.96,1.3]
[1757246369149,13.03618662,204.05,203.97,4.66280838]
[1757246369451,13.03618662,204.05,203.98,4.66280838]
[1757246369651,13.03618662,204.05,203.99,4.66280838]
[1757246369851,13.03618662,204.05,204.0,4.66280838]
[1757246370053,13.03618662,204.05,204.01,4.66280838]
[1757246370352,7.52,204.04,204.02,4.66478192]
[1757246370552,7.52,204.04,203.93,1.3]
[1757246370749,7.52,204.04,203.95,1.29]
[1757246370952,7.52,204.04,203.97,1.29]
[1757246371152,5.51618662,204.05,203.98,4.66490425]
[1757246371349,13.03618662,204.05,203.99,5.95490425]
[1757246371550,5.51618662,204.05,204.0,4.66490425]
[1757246371751,7.52,204.04,204.01,4.66490425]
[1757246372052,5.51618662,204.05,204.02,4.66490425]
[1757246372252,5.51618662,204.05,203.99,1.29]
[1757246372452,5.51618662,204.05,204.0,4.66771311]
[1757246372654,5.51618662,204.05,204.01,4.66771311]
[1757246372852,5.51618662,204.05,204.02,4.66771311]
[1757246373049,7.52,204.04,203.99,1.29]
[1757246373252,5.51618662,204.05,204.0,4.66771311]
[1757246373452,5.51618662,204.05,204.01,4.66771311]
[1757246373657,5.51618662,204.05,204.02,4.66771311]
[1757246373954,5.51618662,204.05,203.99,1.29]
[1757246374150,5.51618662,204.04,204.0,4.6671905]
[1757246374353,7.52,204.03,204.01,4.6671905]
[1757246374552,7.52,204.03,204.02,4.6671905]
[1757246379773,13.03618662,204.03,204.02,4.6671905]
[1757246385871,0.03363772,204.05,204.03,1.29]
[1757246386075,0.03363772,204.05,204.04,5.9571905]
[1757246386265,0.03363772,204.05,204.04,4.6671905]
[1757246386470,0.03363772,204.05,204.04,5.9571905]
[1757246400686,0.03363772,204.05,204.04,6.4571905]
[1757246403584,0.03363772,204.05,204.04,1.79]
[1757246403887,0.03363772,204.05,204.04,6.34215501]
[1757246404088,0.03363772,204.05,204.04,5.84215501]
[1757246404282,7.87,204.15,204.04,5.05215501]
[1757246404483,7.87,204.15,204.06,1.26]
[1757246404685,7.87,204.15,204.07,4.55215501]
[1757246404984,7.87,204.15,204.08,4.55215501]
[1757246405184,7.87,204.15,204.06,1.26]
[1757246405185,7.87,204.15,204.09,4.55215501]
[1757246405385,7.87,204.15,204.06,1.26]
[1757246405693,7.87,204.15,204.1,0.03460818]
[1757246406182,7.87,204.19,204.1,0.03460818]
[1757246408788,22.6,204.19,204.1,0.03460818]
[1757246408989,30.89685648,204.19,204.1,0.03460818]
[1757246409883,22.6,204.19,204.1,0.03460818]
[1757246410085,7.87,204.19,204.1,0.03460818]
[1757246414890,16.16685648,204.19,204.1,0.03460818]
[1757246415095,100.54,204.23,204.1,0.03460818]
[1757246415096,16.16685648,204.17,204.1,0.03460818]
[1757246415490,16.16685648,204.17,204.05,1.26]
[1757246415687,5.48836563,204.13,204.11,0.03518841]
[1757246415894,7.87,204.12,204.11,0.03518841]
[1757246439717,5.50503055,204.12,204.11,1.30518841]
[1757246440411,12.99503055,204.12,204.11,0.03518841]
[1757246443614,7.49,204.11,204.02,1.31]
[1757246443918,5.50585168,204.08,204.03,4.56297454]
[1757246444212,7.49,204.07,204.04,4.56297454]
[1757246444517,7.49,204.07,204.0,1.31]
[1757246444716,7.49,204.07,204.01,4.56263167]
[1757246444916,5.50585168,204.08,204.02,4.56263167]
[1757246445113,5.50585168,204.08,204.03,4.56263167]
[1757246445419,5.50585168,204.08,204.04,4.56263167]
[1757246445614,7.49,204.07,204.01,1.31]
[1757246445918,5.50585168,204.08,204.02,4.56224082]
[1757246446219,7.49,204.07,204.03,5.87224082]
[1757246446420,5.50585168,204.08,204.04,4.56224082]
[1757246446719,7.49,204.07,204.03,1.31]
[1757246446918,5.50585168,204.08,204.04,4.56178439]
[1757246447212,7.49,204.07,204.03,1.31]
[1757246447418,7.49,204.07,204.04,4.56138201]
[1757246447612,5.50585168,204.08,204.03,1.31]
[1757246447818,5.50585168,204.08,204.04,4.56138201]
[1757246448018,5.50585168,204.08,204.03,1.31]
[1757246448219,7.49,204.07,204.04,4.56138201]
[1757246448419,5.50585168,204.08,204.03,1.31]
[1757246448610,7.49,204.07,204.04,4.56112663]
[1757246448816,7.49,204.07,203.99,1.31]
[1757246449020,7.49,204.07,204.0,4.56112663]
[1757246449222,7.49,204.07,204.01,4.56112663]
[1757246449521,8.1,204.07,204.02,4.56112663]
[1757246449820,8.1,204.07,204.03,4.56112663]
[1757246450020,5.50585168,204.08,204.04,4.56112663]
[1757246450221,8.1,204.07,204.0,1.29]
[1757246450424,8.1,204.07,204.01,4.56066125]
[1757246450623,5.50585168,204.08,204.02,4.56066125]
[1757246450920,5.50585168,204.08,204.03,4.56066125]
[1757246451121,8.1,204.07,204.04,4.56066125]
[1757246451421,8.1,204.07,204.0,1.29]
[1757246451621,8.1,204.07,204.01,4.56081615]
[1757246451923,8.1,204.07,204.02,4.56081615]
[1757246452221,13.60585168,204.07,204.0,1.29]
[1757246452421,13.60585168,204.07,204.01,4.56163721]
[1757246452622,13.60585168,204.07,204.0,1.29]
[1757246452623,13.60585168,204.07,204.02,4.56163721]
[1757246452822,13.60585168,204.07,204.0,1.29]
[1757246453024,13.60585168,204.07,204.01,4.56141365]
[1757246453224,5.50585168,204.07,204.02,4.56141365]
[1757246453419,8.1,204.06,204.0,1.29]
[1757246453624,5.50585168,204.07,204.01,4.56101345]
[1757246453819,8.1,204.06,204.02,4.56101345]
[1757246454024,8.1,204.06,204.0,1.29]
[1757246454324,8.1,204.06,204.01,4.56084117]
[1757246454523,5.50585168,204.07,204.02,4.56084117]
[1757246454825,8.1,204.06,204.0,1.29]
[1757246455026,8.1,204.06,204.01,4.55915922]
[1757246455226,8.1,204.06,204.02,4.55915922]
[1757246455426,8.1,204.06,204.0,1.29]
[1757246455726,8.1,204.06,204.01,4.55874922]
[1757246455920,5.50585168,204.07,204.02,4.55874922]
[1757246456120,8.1,204.06,204.0,1.29]
[1757246456428,8.1,204.06,204.01,4.55891528]
[1757246456622,5.50585168,204.07,204.02,4.55891528]
[1757246456822,8.1,204.06,204.0,1.29]
[1757246457023,8.1,204.06,204.01,4.55894833]
[1757246457220,8.1,204.06,204.02,4.55894833]
[1757246457421,8.1,204.06,204.0,1.29]
[1757246457629,8.1,204.06,204.01,4.55923206]
[1757246457821,5.50585168,204.07,204.02,4.55923206]
[1757246458022,8.1,204.06,203.99,1.29]
[1757246458224,8.1,204.06,204.0,4.55923206]
[1757246458526,5.50585168,204.07,204.01,4.55923206]
[1757246458727,8.1,204.06,204.02,4.55923206]
[1757246458926,8.1,204.06,204.03,4.55923206]
[1757246459126,8.1,204.06,203.99,1.29]
[1757246459327,8.1,204.06,204.0,4.55961137]
[1757246459526,8.1,204.06,204.01,4.55961137]
[1757246459720,8.1,204.06,204.02,4.55961137]
[1757246460025,8.1,204.06,204.03,4.55961137]
[1757246460226,5.50585168,204.08,203.99,1.29]
[1757246460428,13.60585168,204.09,204.01,1.29]
[1757246460625,13.60585168,204.09,204.02,4.55913417]
[1757246460828,13.60585168,204.09,204.03,4.55913417]
[1757246461122,5.50585168,204.09,204.04,4.55913417]
[1757246461329,5.50585168,204.09,204.05,4.55913417]
[1757246461524,8.1,204.08,204.01,1.29]
[1757246461828,8.1,204.08,204.02,4.55890926]
[1757246462019,8.1,204.08,204.03,4.55890926]
[1757246462219,13.60585168,204.08,204.04,4.55993272]
[1757246462430,13.60585168,204.08,204.01,1.29]
[1757246462626,13.60585168,204.08,204.02,4.55996544]
[1757246462828,8.1,204.07,204.03,4.55996544]
[1757246463123,5.50585168,204.08,204.04,4.55996544]
[1757246463322,8.1,204.07,204.01,1.29]
[1757246463523,5.50585168,204.08,204.02,4.5601214]
[1757246463724,5.50585168,204.08,204.03,4.5601214]
[1757246463923,5.50585168,204.08,204.04,4.5601214]
[1757246464124,8.1,204.07,204.0,1.29]
[1757246464324,8.1,204.07,204.01,4.56031596]
[1757246464530,5.50585168,204.08,204.02,4.56031596]
[1757246464729,5.50585168,204.08,204.03,4.56031596]
[1757246464930,8.1,204.07,204.0,1.29]
[1757246465231,8.1,204.07,204.01,4.56044321]
[1757246465529,5.50585168,204.08,204.02,4.56044321]
[1757246465727,5.50585168,204.09,204.04,1.29]
[1757246466031,5.50585168,204.09,204.05,5.85044321]
[1757246466032,8.1,204.09,204.05,5.85044321]
[1757246466223,8.1,204.09,204.06,4.56044321]
[1757246466429,8.1,204.09,204.05,1.29]
[1757246466725,8.1,204.09,204.06,4.55861165]
[1757246466932,8.1,204.09,204.05,1.29]
[1757246467230,8.1,204.09,204.06,4.55861015]
[1757246467428,8.1,204.09,204.06,1.29]
[1757246472632,5.50585168,204.1,204.06,1.29]
[1757246472834,8.1,204.09,204.06,1.29]
[1757246473135,5.50585168,204.1,204.06,1.29]
[1757246473532,8.1,204.09,204.06,1.29]
[1757246473732,5.50585168,204.1,204.06,1.29]
[1757246473933,8.1,204.09,204.06,1.29]
[1757246474139,5.50585168,204.1,204.06,1.29]
[1757246474833,8.1,204.09,204.06,1.29]
[1757246475035,5.50585168,204.1,204.06,1.29]
[1757246475237,8.1,204.09,204.01,1.29]
[1757246475436,8.1,204.09,204.03,1.29]
[1757246475640,8.1,204.09,204.04,4.56430486]
[1757246475840,8.1,204.1,204.05,4.56430486]
[1757246476139,5.50585168,204.1,204.06,4.56430486]
[1757246476340,8.1,204.09,204.03,1.29]
[1757246476541,8.1,204.09,204.04,4.56479046]
[1757246476741,8.1,204.09,204.05,4.56479046]
[1757246476938,8.1,204.09,204.06,4.56479046]
[1757246477138,8.1,204.09,204.03,1.29]
[1757246477337,8.1,204.09,204.04,4.56479046]
[1757246477638,5.50585168,204.1,204.05,4.56479046]
[1757246477839,5.50585168,204.1,204.06,4.56479046]
[1757246478034,8.1,204.09,204.03,1.29]
[1757246478237,5.50585168,204.1,204.04,4.56505347]
[1757246478536,8.1,204.09,204.05,4.56505347]
[1757246478738,8.1,204.09,204.06,4.56505347]
[1757246478939,8.1,204.09,204.03,1.29]
[1757246479135,8.1,204.09,204.04,4.56502732]
[1757246479336,7.82,204.09,204.05,4.56502732]
[1757246479532,5.50585168,204.1,204.06,4.56502732]
[1757246479731,7.82,204.09,204.03,1.29]
[1757246479943,7.82,204.1,204.04,4.56482869]
[1757246480242,7.82,204.1,204.05,4.56482869]
[1757246480436,7.82,204.1,204.06,4.56482869]
[1757246480637,7.82,204.1,204.03,1.29]
[1757246480838,7.82,204.1,204.04,4.56480287]
[1757246481037,5.50585168,204.11,204.05,4.56480287]
[1757246481236,5.50585168,204.11,204.06,4.56480287]
[1757246481438,7.82,204.1,204.03,1.29]
[1757246481739,7.82,204.1,204.04,4.56477722]
[1757246482045,5.50585168,204.11,204.05,4.56477722]
[1757246482343,7.82,204.1,204.06,4.56477722]
[1757246482546,7.82,204.1,204.03,1.29]
[1757246482747,7.82,204.1,204.04,4.56475174]
[1757246483045,7.82,204.1,204.05,4.56475174]
[1757246483242,5.50585168,204.11,204.06,4.56475174]
[1757246483541,7.82,204.1,204.03,1.29]
[1757246483742,7.82,204.1,204.04,4.56476796]
[1757246483936,5.50585168,204.11,204.05,4.56476796]
[1757246484139,5.50585168,204.11,204.06,4.56476796]
[1757246484341,7.82,204.1,204.03,1.29]
[1757246484640,7.82,204.1,204.04,4.56485818]
[1757246484834,7.82,204.1,204.05,4.56485818]
[1757246485044,7.82,204.1,204.06,4.56485818]
[1757246485245,7.82,204.1,204.03,1.29]
[1757246485544,5.50585168,204.08,204.04,4.56527424]
[1757246485747,7.82,204.07,204.0,1.29]
[1757246486047,7.82,204.07,204.01,4.56675448]
[1757246486247,7.82,204.07,204.02,4.56675448]
[1757246486548,5.50585168,204.09,204.03,5.85675448]
[1757246486746,5.50585168,204.09,204.04,4.56675448]
[1757246486948,5.50585168,204.09,204.05,4.56675448]
[1757246487148,7.82,204.08,204.02,1.29]
[1757246487348,7.82,204.08,204.03,4.56560672]
[1757246487546,7.82,204.09,204.04,4.56560672]
[1757246487845,7.82,204.09,204.05,5.85560672]
[1757246488146,7.82,204.09,204.06,5.85560672]
[1757246488446,7.82,204.09,204.06,1.29]
[1757246490144,7.82,204.09,204.07,4.56510081]
[1757246490345,7.82,204.09,204.06,1.29]
[1757246490548,7.82,204.1,204.07,4.56492067]
[1757246490745,5.50585168,204.1,204.06,1.29]
[1757246490947,5.50585168,204.11,204.07,4.56527105]
[1757246491147,5.50585168,204.11,204.06,1.29]
[1757246491446,7.82,204.1,204.07,4.56527105]
[1757246491648,5.50585168,204.12,204.08,4.56465433]
[1757246491848,7.82,204.11,204.07,1.29]
[1757246492046,7.82,204.11,204.08,4.56465433]
[1757246492245,7.82,204.11,204.07,1.29]
[1757246492450,7.82,204.11,204.08,4.56443956]
[1757246492649,7.82,204.11,204.07,1.29]
[1757246492848,5.50585168,204.12,204.08,4.56443956]
[1757246493041,5.50585168,204.12,204.07,1.29]
[1757246494045,7.82,204.11,204.07,1.29]
[1757246494548,5.50585168,204.12,204.07,1.29]
[1757246494940,7.82,204.11,204.07,1.29]
[1757246496149,7.82,204.11,204.02,1.29]
[1757246496343,7.82,204.11,204.04,1.29]
[1757246496539,7.82,204.11,204.05,4.56396511]
[1757246496846,7.82,204.11,204.06,4.56396511]
[1757246497039,7.82,204.11,204.07,4.56396511]
[1757246497246,7.82,204.11,204.04,1.29]
[1757246497445,7.82,204.11,204.05,4.56422698]
[1757246497745,7.82,204.11,204.06,4.56422698]
[1757246498048,5.50585168,204.12,204.07,4.56422698]
[1757246498240,7.82,204.11,204.04,1.29]
[1757246498443,7.82,204.11,204.05,4.56463092]
[1757246498746,5.50585168,204.12,204.07,1.29]
[1757246499042,5.50585168,204.12,204.08,4.56463092]
[1757246499248,7.82,204.11,204.02,1.29]
[1757246499450,7.82,204.11,204.04,1.29]
[1757246499648,7.82,204.11,204.05,4.56461016]
[1757246499846,7.82,204.11,204.06,4.56461016]
[1757246500042,5.50585168,204.12,204.07,4.56461016]
[1757246500350,5.50585168,204.12,204.01,4.4107]
[1757246500351,7.82,204.11,204.08,5.85461016]
[1757246500551,7.82,204.11,204.09,4.56461016]
[1757246500753,7.82,204.11,204.08,1.29]
[1757246501049,5.50585168,204.13,204.09,4.57190088]
[1757246501247,5.50585168,204.12,204.08,1.29]
[1757246501452,7.82,204.11,204.09,4.57215675]
[1757246501648,5.50585168,204.12,204.08,1.29]
[1757246501854,5.50585168,204.12,204.09,4.57215675]
[1757246502152,5.50585168,204.12,204.08,1.29]
[1757246502352,7.82,204.11,204.09,4.57215675]
[1757246502552,7.82,204.11,204.08,1.29]
[1757246502753,7.82,204.11,204.09,4.57249696]
[1757246503055,7.82,204.11,204.08,1.29]
[1757246503252,7.82,204.11,204.09,4.57249696]
[1757246503453,7.82,204.11,204.08,1.29]
[1757246503653,7.82,204.11,204.09,4.57293068]
[1757246503954,7.82,204.11,204.08,1.29]
[1757246504144,7.82,204.11,204.09,4.5725796]
[1757246504350,7.82,204.11,204.08,1.29]
[1757246504550,7.82,204.11,204.09,4.57299192]
[1757246504856,7.82,204.11,204.08,1.29]
[1757246505050,7.82,204.11,204.09,4.57299192]
[1757246505357,7.82,204.12,204.03,1.29]
[1757246505654,7.82,204.12,204.05,1.29]
[1757246505852,7.82,204.12,204.06,4.57276698]
[1757246506148,7.82,204.12,204.07,4.57276698]
[1757246506354,7.82,204.12,204.08,4.57276698]
[1757246506554,5.50585168,204.13,204.09,4.57276698]
[1757246506756,7.82,204.12,204.06,1.29]
[1757246506954,7.82,204.12,204.07,4.57262634]
[1757246507149,7.82,204.12,204.08,4.57262634]
[1757246507344,5.50585168,204.13,204.09,4.57262634]
[1757246507549,7.82,204.12,204.05,1.29]
[1757246507754,7.82,204.12,204.06,4.5728697]
[1757246507949,7.82,204.12,204.07,4.5728697]
[1757246508155,5.50585168,204.13,204.08,4.5728697]
[1757246508355,7.82,204.12,204.09,4.5728697]
[1757246508554,7.82,204.12,204.05,1.29]
[1757246508754,7.82,204.12,204.06,4.57319192]
[1757246508955,5.50585168,204.13,204.07,4.57319192]
[1757246509250,7.57,204.12,204.08,4.57319192]
[1757246509553,5.50585168,204.13,204.09,4.57319192]
[1757246509753,7.57,204.12,204.1,4.57319192]
[1757246509955,13.07585168,204.11,204.03,1.29]
[1757246510253,13.07585168,204.11,204.05,1.29]
[1757246510454,7.57,204.1,204.07,1.29]
[1757246510651,7.57,204.1,204.08,4.57376865]
[1757246510950,7.57,204.1,204.07,1.29]
[1757246511151,7.57,204.1,204.08,4.57448612]
[1757246511353,7.57,204.1,204.07,1.29]
[1757246511553,7.57,204.1,204.08,5.86436017]
[1757246511753,7.57,204.1,204.08,1.29]
[1757246512654,5.50585168,204.11,204.08,1.29]
[1757246512860,7.57,204.1,204.08,1.29]
[1757246513956,5.50585168,204.11,204.08,1.29]
[1757246514255,7.57,204.1,204.08,1.29]
[1757246514456,5.50585168,204.11,204.08,1.29]
[1757246514653,13.07585168,204.11,204.03,1.29]
[1757246514855,13.07585168,204.11,204.04,4.57405739]
[1757246515055,13.07585168,204.11,204.05,5.86405739]
[1757246515255,5.50585168,204.11,204.07,1.29]
[1757246515456,5.50585168,204.11,204.08,4.57405739]
[1757246515655,7.57,204.1,204.07,1.29]
[1757246515958,5.50585168,204.11,204.08,4.57398745]
[1757246516149,5.50585168,204.11,204.07,1.29]
[1757246516355,7.57,204.1,204.08,4.57433832]
[1757246516562,13.07585168,204.11,204.04,1.29]
[1757246516763,13.07585168,204.11,204.05,4.57431639]
[1757246516962,5.50585168,204.11,204.06,4.57431639]
[1757246517152,7.57,204.1,204.07,4.57431639]
[1757246517358,5.50585168,204.11,204.08,4.57431639]
[1757246517556,7.57,204.1,204.03,1.29]
[1757246517760,5.50585168,204.11,204.04,4.57430331]
[1757246517960,5.50585168,204.11,204.05,4.57430331]
[1757246518162,5.50585168,204.11,204.06,5.86430331]
[1757246518363,5.50585168,204.11,204.07,4.57430331]
[1757246518656,7.57,204.1,204.08,4.57430331]
[1757246518852,7.57,204.1,204.03,1.29]
[1757246519051,13.07585168,204.11,204.05,1.29]
[1757246519361,5.50585168,204.11,204.07,1.29]
[1757246519560,5.50585168,204.11,204.08,4.57429902]
[1757246519860,126.24531241,204.15,204.07,1.29]
[1757246519861,5.50585168,204.12,204.07,1.29]
[1757246520060,5.50585168,204.12,204.08,4.57435842]
[1757246520263,5.50585168,204.12,204.07,1.29]
[1757246520455,7.57,204.11,204.08,4.57428645]
[1757246520661,7.57,204.11,204.09,4.57428645]
[1757246520863,7.57,204.11,204.1,4.57428645]
[1757246522959,5.50585168,204.13,204.07,1.29]
[1757246523259,5.50585168,204.13,204.08,4.57388915]
[1757246523458,7.57,204.12,204.09,4.57388915]
[1757246523659,7.57,204.12,204.1,4.57388915]
[1757246523963,7.57,204.12,204.07,1.29]
[1757246524167,7.57,204.12,204.08,4.57389115]
[1757246524361,7.57,204.12,204.09,4.57389115]
[1757246524560,7.57,204.12,204.1,4.57389115]
[1757246524760,5.50585168,204.13,204.07,1.29]
[1757246524961,5.50585168,204.13,204.08,4.57390984]